[Event "Paracin Open 2022"]
[Site "Paracin"]
[Date "2022.07.11"]
[Round "4.2"]
[White "Praggnanandhaa R"]
[Black "Nogerbek, Kazybek"]
[Result "1-0"]
[ECO "B30"]
[WhiteElo "2648"]
[BlackElo "2437"]
[Annotator "ChessBase"]
[PlyCount "93"]
[EventDate "2022.07.08"]
[EventCountry "SRB"]
[SourceTitle "playchess.com"]
[Source "ChessBase"]
[SourceQuality "1"]
[TimeControl "5400+30"]

1. e4 {[%emt 0:00:45]} c5 {[%emt 0:00:19]} 2. Nf3 {[%emt 0:00:05]} Nc6 {[%emt 0:00:17]} 3. Bb5 {[%emt 0:00:13]} e6 {[%emt 0:00:32]} 4. O-O {[%emt 0:00:21]} Nge7 {[%emt 0:00:16]} 5. d4 {[%emt 0:00:16]} cxd4 {[%emt 0:00:57]} 6. Nxd4 {[%emt 0:00:09]} b6 {[%emt 0:03:31]} 7. Be2 {[%emt 0:22:26]} a6 {[%emt 0:06:54]} 8. c4 {[%emt 0:03:09]} Bb7 {[%emt 0:01:31]} 9. Be3 {[%emt 0:01:51]} Ng6 {[%emt 0:02:22]} 10. Nb3 {[%emt 0:04:46]} Rc8 {[%emt 0:12:12]} 11. Nc3 {[%emt 0:08:04]} Nce5 {[%emt 0:03:04]} 12. Qd4 {[%emt 0:02:18]} Qc7 {[%emt 0:05:35]} 13. Rfd1 {[%emt 0:06:59]} d6 {[%emt 0:05:43]} 14. Rac1 {[%emt 0:04:33]} Nd7 {[%emt 0:03:21]} 15. f3 {[%emt 0:04:52]} Nge5 {[%emt 0:10:45]} 16. Qd2 {[%emt 0:03:40]} Nf6 {[%emt 0:06:02]} 17. Na4 {[%emt 0:04:39]} Ned7 {[%emt 0:01:24]} 18. Bf4 {[%emt 0:08:26]} e5 {[%emt 0:08:47]} 19. Be3 {[%emt 0:00:54]} Be7 {[%emt 0:00:40]} 20. Na1 {[%emt 0:01:19]} O-O {[%emt 0:02:40]} 21. Nc2 {[%emt 0:01:06]} Nc5 {[%emt 0:04:24]} 22. Nc3 {[%emt 0:00:21]} a5 {[%emt 0:00:35]} 23. Bf2 {[%emt 0:03:45]} Bxe4 {[%emt 0:05:51]} 24. fxe4 {[%emt 0:00:28]} Ncxe4 {[%emt 0:00:08]} 25. Qe1 {[%emt 0:03:52]} Nxf2 {[%emt 0:01:03]} 26. Qxf2 {[%emt 0:00:14]} d5 {[%emt 0:00:28]} 27. Nxd5 {[%emt 0:03:28]} Nxd5 {[%emt 0:00:11]} 28. cxd5 {[%emt 0:00:06]} Bc5 {[%emt 0:02:13]} 29. Ne3 {[%emt 0:00:35]} f5 {[%emt 0:00:37]} 30. Rxc5 {[%emt 0:03:19]} Qxc5 {[%emt 0:00:15]} 31. Nc4 {[%emt 0:00:08]} e4 {[%emt 0:03:37]} 32. d6 {[%emt 0:09:23]} Rfd8 {[%emt 0:01:34]} 33. Qxc5 {[%emt 0:00:00]} Rxc5 {[%emt 0:00:12]} 34. a4 {[%emt 0:00:00]} Kf7 {[%emt 0:02:21]} 35. Nxb6 {[%emt 0:00:00]} Rc2 {[%emt 0:01:12]} 36. Bb5 {[%emt 0:00:00]} f4 {[%emt 0:01:54]} 37. d7 {[%emt 0:00:00]} g5 {[%emt 0:01:10]} 38. Nc4 {[%emt 0:00:00]} e3 {[%emt 0:01:12]} 39. Nxa5 {[%emt 0:00:07]} Rd2 {[%emt 0:01:00]} 40. Re1 {[%emt 0:00:36]} Kf6 {[%emt 0:01:01]} 41. Nb7 {[%emt 0:00:43]} R8xd7 {[%emt 0:00:06]} 42. Bxd7 {[%emt 0:00:04]} Rxd7 {[%emt 0:00:06]} 43. Nc5 {[%emt 0:04:00]} Rd5 {[%emt 0:00:33]} 44. b4 {[%emt 0:00:00]} Ke5 {[%emt 0:00:38]} 45. a5 {[%emt 0:00:00]} Rd2 {[%emt 0:00:04]} 46. a6 {[%emt 0:00:00]} Ra2 {[%emt 0:00:06]} 47. b5 {[%emt 0:00:00]} 1-0

[Event "Paracin Open 2022"]
[Site "Paracin"]
[Date "2022.07.11"]
[Round "4.3"]
[White "Makarian, Rudik"]
[Black "Urazayev, Arystanbek"]
[Result "1/2-1/2"]
[ECO "A03"]
[WhiteElo "2533"]
[BlackElo "2430"]
[Annotator "ChessBase"]
[PlyCount "206"]
[EventDate "2022.07.08"]
[EventCountry "SRB"]
[SourceTitle "playchess.com"]
[Source "ChessBase"]
[SourceQuality "1"]
[TimeControl "5400+30"]

1. d3 {[%emt 0:00:02]} d5 {[%emt 0:04:19]} 2. f4 {[%emt 0:00:08]} Bf5 {[%emt 0:00:04]} 3. Nf3 {[%emt 0:02:55]} e6 {[%emt 0:00:04]} 4. g3 {[%emt 0:04:02]} h6 {[%emt 0:00:04]} 5. Bg2 {[%emt 0:00:44]} Nf6 {[%emt 0:00:05]} 6. O-O {[%emt 0:02:26]} Be7 {[%emt 0:00:05]} 7. e3 {[%emt 0:04:09]} O-O {[%emt 0:00:41]} 8. Qe2 {[%emt 0:00:11]} c5 {[%emt 0:00:23]} 9. Ne5 {[%emt 0:13:39]} Bh7 {[%emt 0:01:32]} 10. Nc3 {[%emt 0:00:20]} Nfd7 {[%emt 0:06:07]} 11. Nxd7 {[%emt 0:07:54]} Nxd7 {[%emt 0:00:29]} 12. a4 {[%emt 0:01:42]} a6 {[%emt 0:19:44]} 13. e4 {[%emt 0:02:05]} d4 {[%emt 0:00:34]} 14. Nd1 {[%emt 0:14:54]} b5 {[%emt 0:00:07]} 15. b3 {[%emt 0:00:05]} c4 {[%emt 0:11:58]} 16. dxc4 {[%emt 0:01:52]} bxc4 {[%emt 0:00:29]} 17. Qxc4 {[%emt 0:01:32]} Rc8 {[%emt 0:03:38]} 18. Qe2 {[%emt 0:01:05]} Qc7 {[%emt 0:05:11]} 19. Ra2 {[%emt 0:01:55]} d3 {[%emt 0:07:06]} 20. Qxd3 {[%emt 0:00:16]} Nc5 {[%emt 0:00:04]} 21. Qc4 {[%emt 0:10:41]} Qd6 {[%emt 0:11:53]} 22. Ba3 {[%emt 0:07:18]} Qb6 {[%emt 0:08:22]} 23. Qd4 {[%emt 0:00:10]} e5 {[%emt 0:07:02]} 24. fxe5 {[%emt 0:01:00]} Rfd8 {[%emt 0:01:31]} 25. Qf2 {[%emt 0:00:13]} Qe6 {[%emt 0:02:33]} 26. Ne3 {[%emt 0:05:49]} Nxe4 {[%emt 0:01:11]} 27. Bxe4 {[%emt 0:00:05]} Bxe4 {[%emt 0:00:04]} 28. Bxe7 {[%emt 0:00:19]} Qxe7 {[%emt 0:00:04]} 29. Qf4 {[%emt 0:01:13]} Ba8 {[%emt 0:00:57]} 30. c4 {[%emt 0:02:50]} Qb7 {[%emt 0:01:38]} 31. Nd5 {[%emt 0:00:03]} Rxd5 {[%emt 0:00:31]} 32. cxd5 {[%emt 0:00:06]} Qxd5 {[%emt 0:00:03]} 33. Rd2 {[%emt 0:00:51]} Qxb3 {[%emt 0:05:46]} 34. h4 {[%emt 0:01:24]} Bd5 {[%emt 0:01:39]} 35. Rfd1 {[%emt 0:01:50]} Be6 {[%emt 0:01:02]} 36. Rd8+ {[%emt 0:01:29]} Kh7 {[%emt 0:00:30]} 37. R8d3 {[%emt 0:01:23]} Qb7 {[%emt 0:00:27]} 38. Rd4 {[%emt 0:01:10]} Qb3 {[%emt 0:00:45]} 39. h5 {[%emt 0:00:50]} Qb6 {[%emt 0:00:04]} 40. Qe4+ {[%emt 0:00:25]} Kg8 {[%emt 0:00:04]} 41. Kh2 {[%emt 0:00:33]} Qa5 {[%emt 0:00:18]} 42. R1d2 {[%emt 0:00:36]} Re8 {[%emt 0:01:07]} 43. Rd6 {[%emt 0:02:29]} Bb3 {[%emt 0:00:44]} 44. Qd3 {[%emt 0:00:31]} Qxa4 {[%emt 0:00:50]} 45. Rxa6 {[%emt 0:01:29]} Qc4 {[%emt 0:00:22]} 46. Qxc4 {[%emt 0:00:27]} Bxc4 {[%emt 0:00:03]} 47. Ra5 {[%emt 0:00:43]} Be6 {[%emt 0:00:28]} 48. Rd4 {[%emt 0:00:17]} Rb8 {[%emt 0:00:20]} 49. g4 {[%emt 0:00:30]} Kh7 {[%emt 0:00:10]} 50. Kg3 {[%emt 0:00:19]} g6 {[%emt 0:00:22]} 51. Kh4 {[%emt 0:02:04]} gxh5 {[%emt 0:01:24]} 52. Kxh5 {[%emt 0:00:26]} Rb1 {[%emt 0:00:39]} 53. g5 {[%emt 0:01:10]} hxg5 {[%emt 0:00:44]} 54. Kxg5 {[%emt 0:00:07]} Kg7 {[%emt 0:00:06]} 55. Rd3 {[%emt 0:01:20]} Rg1+ {[%emt 0:00:45]} 56. Kf4 {[%emt 0:00:38]} Rg4+ {[%emt 0:00:12]} 57. Kf3 {[%emt 0:00:15]} Kg6 {[%emt 0:00:24]} 58. Rd8 {[%emt 0:00:40]} Kf5 {[%emt 0:00:15]} 59. Rh8 {[%emt 0:00:06]} Rb4 {[%emt 0:00:19]} 60. Ke3 {[%emt 0:01:05]} Re4+ {[%emt 0:00:52]} 61. Kd3 {[%emt 0:00:05]} Rf4 {[%emt 0:00:57]} 62. Rh5+ {[%emt 0:00:50]} Kg6 {[%emt 0:00:05]} 63. Rh1 {[%emt 0:00:16]} Kf5 {[%emt 0:00:36]} 64. Re1 {[%emt 0:00:10]} Bc4+ {[%emt 0:00:42]} 65. Kc3 {[%emt 0:00:13]} Be6 {[%emt 0:00:11]} 66. Rc5 {[%emt 0:00:38]} Rf3+ {[%emt 0:00:33]} 67. Kb4 {[%emt 0:00:07]} Kg6 {[%emt 0:01:10]} 68. Kb5 {[%emt 0:00:17]} Rd3 {[%emt 0:00:25]} 69. Rf1 {[%emt 0:00:45]} Rd2 {[%emt 0:00:31]} 70. Kc6 {[%emt 0:00:11]} Bd7+ {[%emt 0:00:16]} 71. Kc7 {[%emt 0:00:09]} Be6 {[%emt 0:01:20]} 72. Rc3 {[%emt 0:00:07]} Kg7 {[%emt 0:00:00]} 73. Kc6 {[%emt 0:01:15]} Kf8 {[%emt 0:00:00]} 74. Ra1 {[%emt 0:01:20]} Re2 {[%emt 0:00:37]} 75. Ra5 {[%emt 0:00:50]} Ke7 {[%emt 0:00:20]} 76. Rcc5 {[%emt 0:00:56]} Kf8 {[%emt 0:00:38]} 77. Ra8+ {[%emt 0:01:04]} Ke7 {[%emt 0:00:24]} 78. Rca5 {[%emt 0:00:31]} Rc2+ {[%emt 0:00:46]} 79. Kb6 {[%emt 0:00:02]} Bd7 {[%emt 0:00:25]} 80. Rc5 {[%emt 0:00:50]} Rb2+ {[%emt 0:00:23]} 81. Kc7 {[%emt 0:00:04]} Be6 {[%emt 0:00:14]} 82. Rb8 {[%emt 0:00:26]} Rd2 {[%emt 0:00:22]} 83. Rb7 {[%emt 0:00:14]} Kf8 {[%emt 0:00:15]} 84. Ra5 {[%emt 0:00:28]} Kg7 {[%emt 0:00:21]} 85. Rb1 {[%emt 0:00:19]} Kf8 {[%emt 0:00:57]} 86. Kc6 {[%emt 0:00:17]} Rc2+ {[%emt 0:00:08]} 87. Kd6 {[%emt 0:00:25]} Rd2+ {[%emt 0:00:12]} 88. Kc5 {[%emt 0:00:05]} Kg7 {[%emt 0:00:22]} 89. Rg1+ {[%emt 0:00:44]} Kf8 {[%emt 0:00:17]} 90. Kb4 {[%emt 0:00:10]} Rd8 {[%emt 0:01:23]} 91. Kc3 {[%emt 0:00:11]} Rb8 {[%emt 0:00:29]} 92. Ra4 {[%emt 0:00:24]} Rb3+ {[%emt 0:00:20]} 93. Kd4 {[%emt 0:00:01]} Rb8 {[%emt 0:00:24]} 94. Ke4 {[%emt 0:00:22]} Ke7 {[%emt 0:00:59]} 95. Rga1 {[%emt 0:00:30]} Rb2 {[%emt 0:01:00]} 96. Ra7+ {[%emt 0:00:09]} Kf8 {[%emt 0:00:12]} 97. Ra8+ {[%emt 0:00:02]} Ke7 {[%emt 0:00:30]} 98. R8a7+ {[%emt 0:00:22]} Kf8 {[%emt 0:00:09]} 99. Rh1 {[%emt 0:00:24]} Rb4+ {[%emt 0:00:26]} 100. Kd3 {[%emt 0:00:17]} Kg7 {[%emt 0:01:00]} 101. Ra8 {[%emt 0:00:39]} Rg4 {[%emt 0:00:47]} 102. Rhh8 {[%emt 0:00:13]} Bf5+ {[%emt 0:00:19]} 103. Kd2 {[%emt 0:01:41]} Rg2+ {[%emt 0:01:21]} 1/2-1/2

[Event "Paracin Open 2022"]
[Site "Paracin"]
[Date "2022.07.11"]
[Round "4.4"]
[White "Koustav Chatterjee"]
[Black "Sharan, Rao"]
[Result "1-0"]
[ECO "D36"]
[WhiteElo "2485"]
[BlackElo "2342"]
[Annotator "ChessBase"]
[PlyCount "61"]
[EventDate "2022.07.08"]
[EventCountry "SRB"]
[SourceTitle "playchess.com"]
[Source "ChessBase"]
[SourceQuality "1"]
[TimeControl "5400+30"]

1. d4 {[%emt 0:00:27]} d5 {[%emt 0:00:05]} 2. c4 {[%emt 0:00:04]} e6 {[%emt 0:00:03]} 3. Nc3 {[%emt 0:00:17]} Nf6 {[%emt 0:00:05]} 4. cxd5 {[%emt 0:00:10]} exd5 {[%emt 0:00:05]} 5. Bg5 {[%emt 0:00:04]} Nbd7 {[%emt 0:00:12]} 6. e3 {[%emt 0:00:17]} c6 {[%emt 0:00:08]} 7. Bd3 {[%emt 0:00:06]} Bd6 {[%emt 0:00:05]} 8. Nf3 {[%emt 0:01:13]} h6 {[%emt 0:00:17]} 9. Bh4 {[%emt 0:00:13]} O-O {[%emt 0:00:06]} 10. O-O {[%emt 0:00:20]} Re8 {[%emt 0:00:12]} 11. Qc2 {[%emt 0:00:09]} Nf8 {[%emt 0:00:37]} 12. h3 {[%emt 0:00:28]} a6 {[%emt 0:00:28]} 13. a3 {[%emt 0:02:13]} N8d7 {[%emt 0:01:02]} 14. Rae1 {[%emt 0:16:41]} Qc7 {[%emt 0:03:56]} 15. e4 {[%emt 0:02:23]} g5 {[%emt 0:03:42]} 16. e5 {[%emt 0:07:39]} gxh4 {[%emt 0:00:07]} 17. exd6 {[%emt 0:05:32]} Qxd6 {[%emt 0:00:10]} 18. Qc1 {[%emt 0:08:05]} Kg7 {[%emt 0:07:51]} 19. Nxh4 {[%emt 0:03:52]} Nf8 {[%emt 0:00:33]} 20. Rxe8 {[%emt 0:11:07]} Nxe8 {[%emt 0:00:07]} 21. Re1 {[%emt 0:00:06]} Bd7 {[%emt 0:15:13]} 22. Re5 {[%emt 0:06:22]} Qf6 {[%emt 0:04:16]} 23. Rh5 {[%emt 0:01:48]} Nd6 {[%emt 0:00:30]} 24. Ne2 {[%emt 0:00:54]} Ne6 {[%emt 0:11:13]} 25. Nf3 {[%emt 0:06:32]} Rd8 {[%emt 0:16:39]} 26. Ne5 {[%emt 0:05:32]} Nf8 {[%emt 0:06:17]} 27. Ng3 {[%emt 0:01:49]} Be6 {[%emt 0:01:45]} 28. Rf5 {[%emt 0:02:08]} Qxf5 {[%emt 0:00:12]} 29. Bxf5 {[%emt 0:01:32]} Nxf5 {[%emt 0:00:02]} 30. Ng4 {[%emt 0:00:39]} Rd6 {[%emt 0:02:26]} 31. Qf4 {[%emt 0:00:21]} 1-0

[Event "Paracin Open 2022"]
[Site "Paracin"]
[Date "2022.07.11"]
[Round "4.5"]
[White "Samant Aditya S"]
[Black "Sturt, Raven"]
[Result "1-0"]
[ECO "B77"]
[WhiteElo "2431"]
[BlackElo "2457"]
[Annotator "ChessBase"]
[PlyCount "123"]
[EventDate "2022.07.08"]
[EventCountry "SRB"]
[SourceTitle "playchess.com"]
[Source "ChessBase"]
[SourceQuality "1"]
[TimeControl "5400+30"]

1. e4 {[%emt 0:00:03]} c5 {[%emt 0:00:08]} 2. Nf3 {[%emt 0:00:05]} d6 {[%emt 0:00:03]} 3. d4 {[%emt 0:00:04]} cxd4 {[%emt 0:00:04]} 4. Nxd4 {[%emt 0:00:04]} Nf6 {[%emt 0:00:02]} 5. Nc3 {[%emt 0:00:07]} g6 {[%emt 0:00:05]} 6. Be3 {[%emt 0:00:16]} Bg7 {[%emt 0:00:04]} 7. f3 {[%emt 0:00:08]} O-O {[%emt 0:00:05]} 8. Bc4 {[%emt 0:00:19]} Nc6 {[%emt 0:00:30]} 9. Qd2 {[%emt 0:00:09]} Nxd4 {[%emt 0:00:06]} 10. Bxd4 {[%emt 0:00:08]} Be6 {[%emt 0:00:04]} 11. Bb3 {[%emt 0:06:41]} Qa5 {[%emt 0:00:26]} 12. O-O-O {[%emt 0:02:24]} b5 {[%emt 0:00:07]} 13. Kb1 {[%emt 0:02:39]} b4 {[%emt 0:00:20]} 14. Nd5 {[%emt 0:02:52]} Bxd5 {[%emt 0:00:04]} 15. exd5 {[%emt 0:09:44]} Qb5 {[%emt 0:00:04]} 16. Qd3 {[%emt 0:03:06]} Qxd3 {[%emt 0:00:08]} 17. Rxd3 {[%emt 0:00:04]} Nd7 {[%emt 0:00:20]} 18. Re1 {[%emt 0:01:11]} Ne5 {[%emt 0:00:44]} 19. Rdd1 {[%emt 0:10:24]} g5 {[%emt 1:36:36]} 20. c3 {[%emt 0:02:32]} bxc3 {[%emt 0:00:00]} 21. Bxc3 {[%emt 0:00:11]} a5 {[%emt 0:00:00]} 22. Re4 {[%emt 0:00:59]} Rfc8 {[%emt 0:00:00]} 23. Ra4 {[%emt 0:06:20]} Rc5 {[%emt 0:00:00]} 24. Bd4 {[%emt 0:01:54]} Rb5 {[%emt 0:00:00]} 25. Rc1 {[%emt 0:08:52]} Nd3 {[%emt 0:00:00]} 26. Rc7 {[%emt 0:00:20]} Bxd4 {[%emt 0:00:00]} 27. Rxd4 {[%emt 0:00:02]} Nc5 {[%emt 0:00:00]} 28. Bc4 {[%emt 0:06:20]} Rb4 {[%emt 0:00:00]} 29. a3 {[%emt 0:06:13]} Rb6 {[%emt 0:00:00]} 30. Rxe7 {[%emt 0:02:40]} Rab8 {[%emt 0:00:00]} 31. Rd2 {[%emt 0:03:32]} Na4 {[%emt 0:00:00]} 32. b3 {[%emt 0:01:44]} Nc5 {[%emt 0:00:00]} 33. Ka2 {[%emt 0:01:41]} Nxb3 {[%emt 0:00:00]} 34. Bxb3 {[%emt 0:00:01]} Rxb3 {[%emt 0:00:00]} 35. Ra7 {[%emt 0:01:39]} R3b5 {[%emt 0:00:00]} 36. Ra6 {[%emt 0:00:17]} Rd8 {[%emt 0:00:00]} 37. a4 {[%emt 0:01:12]} Rc5 {[%emt 0:00:00]} 38. Rc6 {[%emt 0:00:07]} Rc8 {[%emt 0:00:00]} 39. Rxd6 {[%emt 0:00:31]} Rc2+ {[%emt 0:00:00]} 40. Rxc2 {[%emt 0:00:01]} Rxc2+ {[%emt 0:00:00]} 41. Kb3 {[%emt 0:00:10]} Rxg2 {[%emt 0:00:00]} 42. h4 {[%emt 0:04:27]} g4 {[%emt 0:00:00]} 43. fxg4 {[%emt 0:00:49]} Rxg4 {[%emt 0:00:00]} 44. Ra6 {[%emt 0:04:44]} Rb4+ {[%emt 0:00:00]} 45. Kc3 {[%emt 0:00:55]} Kf8 {[%emt 0:00:00]} 46. Rxa5 {[%emt 0:00:38]} Rxh4 {[%emt 0:00:00]} 47. Ra7 {[%emt 0:03:32]} Ke8 {[%emt 0:00:00]} 48. a5 {[%emt 0:01:24]} Ra4 {[%emt 0:00:00]} 49. a6 {[%emt 0:01:21]} Kd8 {[%emt 0:00:00]} 50. d6 {[%emt 0:06:25]} h5 {[%emt 0:00:00]} 51. Ra8+ {[%emt 0:01:13]} Kd7 {[%emt 0:00:00]} 52. a7 {[%emt 0:00:01]} Kxd6 {[%emt 0:00:00]} 53. Rd8+ {[%emt 0:00:01]} Ke5 {[%emt 0:00:00]} 54. a8=Q {[%emt 0:04:14]} Rxa8 {[%emt 0:00:00]} 55. Rxa8 {[%emt 0:00:00]} Kf4 {[%emt 0:00:00]} 56. Rh8 {[%emt 0:00:00]} Kg4 {[%emt 0:00:00]} 57. Kd3 {[%emt 0:00:00]} h4 {[%emt 0:00:00]} 58. Ke3 {[%emt 0:00:04]} Kg3 {[%emt 0:00:00]} 59. Rg8+ {[%emt 0:00:04]} Kh2 {[%emt 0:00:00]} 60. Kf2 {[%emt 0:00:16]} f5 {[%emt 0:00:00]} 61. Rh8 {[%emt 0:00:13]} Kh3 {[%emt 0:00:00]} 62. Kf3 {[%emt 0:00:01]} 1-0

[Event "Paracin Open 2022"]
[Site "Paracin"]
[Date "2022.07.11"]
[Round "4.6"]
[White "Harshavardhan G B"]
[Black "Pranav Vijay"]
[Result "1/2-1/2"]
[ECO "C73"]
[WhiteElo "2397"]
[BlackElo "2265"]
[Annotator "ChessBase"]
[PlyCount "150"]
[EventDate "2022.07.08"]
[EventCountry "SRB"]
[SourceTitle "playchess.com"]
[Source "ChessBase"]
[SourceQuality "1"]
[TimeControl "5400+30"]

1. e4 {[%emt 0:00:26]} e5 {[%emt 0:06:34]} 2. Nf3 {[%emt 0:00:31]} Nc6 {[%emt 0:00:11]} 3. Bb5 {[%emt 0:00:40]} a6 {[%emt 0:00:29]} 4. Ba4 {[%emt 0:00:47]} d6 {[%emt 0:01:02]} 5. Bxc6+ {[%emt 0:00:12]} bxc6 {[%emt 0:00:06]} 6. d4 {[%emt 0:00:06]} f6 {[%emt 0:00:43]} 7. Be3 {[%emt 0:00:07]} Ne7 {[%emt 0:01:17]} 8. h4 {[%emt 0:01:39]} Bg4 {[%emt 0:05:00]} 9. Qd3 {[%emt 0:02:38]} d5 {[%emt 0:23:41]} 10. dxe5 {[%emt 0:08:03]} Bxf3 {[%emt 0:00:09]} 11. gxf3 {[%emt 0:00:10]} fxe5 {[%emt 0:00:05]} 12. Nd2 {[%emt 0:02:37]} Qb8 {[%emt 0:12:35]} 13. O-O-O {[%emt 0:03:18]} Qb5 {[%emt 0:00:10]} 14. Nb3 {[%emt 0:02:30]} d4 {[%emt 0:00:44]} 15. c4 {[%emt 0:08:37]} Qa4 {[%emt 0:04:52]} 16. Kb1 {[%emt 0:09:36]} c5 {[%emt 0:02:26]} 17. Bd2 {[%emt 0:13:13]} Nc6 {[%emt 0:11:59]} 18. Qc2 {[%emt 0:01:09]} Be7 {[%emt 0:05:14]} 19. Nxd4 {[%emt 0:00:34]} Qxc2+ {[%emt 0:00:03]} 20. Nxc2 {[%emt 0:00:11]} O-O {[%emt 0:00:04]} 21. f4 {[%emt 0:01:02]} exf4 {[%emt 0:00:34]} 22. Bc3 {[%emt 0:00:37]} Bf6 {[%emt 0:00:42]} 23. Rd5 {[%emt 0:08:56]} Bxc3 {[%emt 0:06:44]} 24. bxc3 {[%emt 0:00:13]} Rab8+ {[%emt 0:00:45]} 25. Ka1 {[%emt 0:02:37]} Rfd8 {[%emt 0:00:59]} 26. Rhd1 {[%emt 0:01:39]} Rxd5 {[%emt 0:06:35]} 27. Rd3 {[%emt 0:31:52]} Rd4 28. Rxd4 {[%emt 0:00:00]} Rc8 {[%emt 0:10:47]} 29. Rd5 Rd8 {[%emt 0:00:00]} 30. Rxc5 {[%emt 0:00:00]} Rd2 {[%emt 0:00:00]} 31. Kb1 {[%emt 0:00:00]} Ne7 {[%emt 0:00:00]} 32. f3 {[%emt 0:00:00]} c6 {[%emt 0:00:00]} 33. Nd4 {[%emt 0:00:00]} Rf2 {[%emt 0:00:00]} 34. a4 {[%emt 0:00:00]} Kf7 {[%emt 0:00:11]} 35. Ra5 {[%emt 0:00:00]} g6 {[%emt 0:00:33]} 36. Rxa6 {[%emt 0:00:00]} h5 {[%emt 0:00:27]} 37. Ra7 {[%emt 0:00:00]} Ke8 {[%emt 0:00:10]} 38. a5 {[%emt 0:00:00]} c5 {[%emt 0:00:01]} 39. Nb3 {[%emt 0:00:00]} Rxf3 {[%emt 0:00:19]} 40. a6 {[%emt 0:00:00]} Rxc3 {[%emt 0:00:42]} 41. Rxe7+ {[%emt 0:00:00]} Kxe7 {[%emt 0:00:00]} 42. a7 {[%emt 0:00:00]} Rxb3+ {[%emt 0:00:03]} 43. Ka2 {[%emt 0:00:00]} f3 {[%emt 0:00:32]} 44. a8=Q {[%emt 0:00:00]} f2 {[%emt 0:00:05]} 45. Qa7+ {[%emt 0:00:00]} Ke6 {[%emt 0:00:11]} 46. Kxb3 {[%emt 0:00:00]} f1=Q {[%emt 0:00:05]} 47. Qb6+ {[%emt 0:00:00]} Kd7 {[%emt 0:01:47]} 48. Qb7+ {[%emt 0:00:00]} Ke8 {[%emt 0:01:33]} 49. Qc8+ {[%emt 0:00:00]} Kf7 {[%emt 0:00:01]} 50. Qc7+ {[%emt 0:00:00]} Ke6 {[%emt 0:00:16]} 51. Qc6+ {[%emt 0:00:00]} Kf7 {[%emt 0:00:27]} 52. Qd5+ {[%emt 0:01:10]} Kg7 {[%emt 0:00:14]} 53. Ka4 {[%emt 0:01:00]} Qb1 {[%emt 0:00:22]} 54. Ka5 {[%emt 0:02:57]} Qb4+ {[%emt 0:03:38]} 55. Ka6 {[%emt 0:00:08]} Kf6 {[%emt 0:00:32]} 56. Qd6+ {[%emt 0:00:48]} Kf7 {[%emt 0:00:09]} 57. Qd7+ {[%emt 0:00:14]} Kf6 {[%emt 0:00:14]} 58. Qd5 {[%emt 0:00:16]} Ke7 {[%emt 0:00:50]} 59. e5 {[%emt 0:00:41]} Qa4+ {[%emt 0:01:17]} 60. Kb6 {[%emt 0:00:38]} Qb4+ {[%emt 0:00:14]} 61. Ka7 {[%emt 0:00:24]} Qa4+ {[%emt 0:00:19]} 62. Kb8 {[%emt 0:00:17]} Qd7 {[%emt 0:01:01]} 63. Qxc5+ {[%emt 0:05:26]} Ke6 {[%emt 0:01:17]} 64. Qa5 {[%emt 0:02:09]} Qc6 {[%emt 0:00:00]} 65. Qc7 {[%emt 0:01:34]} Qxc7+ {[%emt 0:00:00]} 66. Kxc7 {[%emt 0:00:06]} g5 {[%emt 0:00:07]} 67. hxg5 {[%emt 0:00:14]} Kxe5 {[%emt 0:00:03]} 68. g6 {[%emt 0:00:18]} Kf6 {[%emt 0:00:06]} 69. c5 {[%emt 0:00:19]} h4 {[%emt 0:00:04]} 70. c6 {[%emt 0:00:14]} h3 {[%emt 0:00:02]} 71. Kb8 {[%emt 0:00:07]} h2 {[%emt 0:00:03]} 72. c7 {[%emt 0:03:30]} h1=Q {[%emt 0:00:02]} 73. c8=Q {[%emt 0:00:30]} Qb1+ {[%emt 0:00:02]} 74. Qb7 {[%emt 0:00:00]} Qxb7+ {[%emt 0:00:03]} 75. Kxb7 {[%emt 0:00:00]} Kxg6 {[%emt 0:00:01]} 1/2-1/2